[Event "*** Titled Tuesday Blitz"]
[Site "Chess.com"]
[Date "2018.05.01"]
[Round "6"]
[White "LuisFSiles"]
[Black "Eliwood44"]
[Result "0-1"]
[WhiteElo "2241"]
[BlackElo "2177"]
[TimeControl "180+2"]
[EndTime "14:21:03 PDT"]
[Termination "Eliwood44 won by resignation"]

1. e4 {[%clk 0:03:01.9]} 1... e5 {[%clk 0:02:57.4]} 2. Nf3 {[%clk 0:03:02.4]}
2... Nc6 {[%clk 0:02:58.8]} 3. Bc4 {[%clk 0:03:03.4]} 3... Nf6 {[%clk
0:02:59.7]} 4. d3 {[%clk 0:03:03]} 4... h6 {[%clk 0:02:59.6]} 5. O-O {[%clk
0:02:57.2]} 5... d6 {[%clk 0:03:00.2]} 6. a4 {[%clk 0:02:49.9]} 6... g5 {[%clk
0:02:59.1]} 7. Re1 {[%clk 0:02:43.9]} 7... Qe7 {[%clk 0:02:54.5]} 8. Nc3 {[%clk
0:02:41.3]} 8... Be6 {[%clk 0:02:53.6]} 9. Bb5 {[%clk 0:02:38.5]} 9... Bg7
{[%clk 0:02:50.9]} 10. Bxc6+ {[%clk 0:02:33.8]} 10... bxc6 {[%clk 0:02:51.6]}
11. d4 {[%clk 0:02:35.3]} 11... exd4 {[%clk 0:02:19.3]} 12. Nxd4 {[%clk
0:02:33.7]} 12... Qd7 {[%clk 0:02:20.5]} 13. Qd3 {[%clk 0:02:22.1]} 13... O-O
{[%clk 0:02:17.3]} 14. a5 {[%clk 0:02:06.4]} 14... c5 {[%clk 0:02:17.4]} 15.
Nxe6 {[%clk 0:02:04.3]} 15... fxe6 {[%clk 0:02:15]} 16. e5 {[%clk 0:01:51.9]}
16... Ng4 {[%clk 0:02:13.2]} 17. exd6 {[%clk 0:01:32.1]} 17... Nxf2 {[%clk
0:02:12.2]} 18. Qe2 {[%clk 0:01:24.7]} 18... Bd4 {[%clk 0:01:49.1]} 19. Be3
{[%clk 0:01:24.6]} 19... cxd6 {[%clk 0:01:34.8]} 20. Rf1 {[%clk 0:01:14.5]}
20... Bxe3 {[%clk 0:01:29.9]} 21. Qxe3 {[%clk 0:01:15.6]} 21... Ng4 {[%clk
0:01:31.3]} 22. Qe4 {[%clk 0:01:01.9]} 22... Ne5 {[%clk 0:01:28.8]} 23. a6
{[%clk 0:00:57.6]} 23... Rxf1+ {[%clk 0:01:23.3]} 24. Rxf1 {[%clk 0:00:57.5]}
24... Rf8 {[%clk 0:01:24.4]} 25. Rxf8+ {[%clk 0:00:49.7]} 25... Kxf8 {[%clk
0:01:26.3]} 26. Qb7 {[%clk 0:00:42.4]} 26... Ke7 {[%clk 0:01:07.4]} 27. Nb5
{[%clk 0:00:39]} 27... Nc6 {[%clk 0:01:04.4]} 28. Nc7 {[%clk 0:00:25.3]} 28...
Nb4 {[%clk 0:00:38.9]} 29. c3 {[%clk 0:00:25.6]} 29... Nxa6 {[%clk 0:00:35]} 30.
Qxa6 {[%clk 0:00:24.5]} 30... Qxc7 {[%clk 0:00:35.8]} 31. Qa3 {[%clk 0:00:20.4]}
31... c4 {[%clk 0:00:33.4]} 32. Qb4 {[%clk 0:00:20.8]} 32... Qb6+ {[%clk
0:00:33.6]} 33. Qxb6 {[%clk 0:00:19.1]} 33... axb6 {[%clk 0:00:35.5]} 34. Kf2
{[%clk 0:00:20.1]} 34... d5 {[%clk 0:00:37]} 35. Kf3 {[%clk 0:00:19]} 35... e5
{[%clk 0:00:36.4]} 36. g4 {[%clk 0:00:20.2]} 36... Ke6 {[%clk 0:00:37]} 37. Ke3
{[%clk 0:00:21.2]} 37... b5 {[%clk 0:00:38]} 38. h3 {[%clk 0:00:22]} 38... Kd6
{[%clk 0:00:39.3]} 39. Kf3 {[%clk 0:00:22.9]} 39... Kc5 {[%clk 0:00:40.1]} 40.
Ke3 {[%clk 0:00:23.9]} 40... b4 {[%clk 0:00:41.3]} 41. cxb4+ {[%clk 0:00:25]}
41... Kxb4 {[%clk 0:00:42]} 0-1

[Event "*** Titled Tuesday Blitz"]
[Site "Chess.com"]
[Date "2018.05.01"]
[Round "6"]
[White "dukicz123"]
[Black "Ginger_GM"]
[Result "0-1"]
[WhiteElo "2319"]
[BlackElo "2484"]
[TimeControl "180+2"]
[EndTime "14:21:29 PDT"]
[Termination "Ginger_GM won by checkmate"]

1. e4 {[%clk 0:03:01]} 1... e6 {[%clk 0:02:55.9]} 2. d4 {[%clk 0:03:01.9]} 2...
d5 {[%clk 0:02:55.5]} 3. Nc3 {[%clk 0:03:03.2]} 3... Bb4 {[%clk 0:02:55.3]} 4.
e5 {[%clk 0:03:04.3]} 4... Ne7 {[%clk 0:02:55.6]} 5. a3 {[%clk 0:03:04.2]} 5...
Bxc3+ {[%clk 0:02:56.4]} 6. bxc3 {[%clk 0:03:06.1]} 6... c5 {[%clk 0:02:57.4]}
7. Qg4 {[%clk 0:03:07]} 7... Qc7 {[%clk 0:02:58.2]} 8. Bd3 {[%clk 0:03:07.2]}
8... cxd4 {[%clk 0:02:56.3]} 9. Ne2 {[%clk 0:03:06.3]} 9... dxc3 {[%clk
0:02:55.3]} 10. Qxg7 {[%clk 0:03:02.5]} 10... Rg8 {[%clk 0:02:55.9]} 11. Qxh7
{[%clk 0:03:02.8]} 11... Nbc6 {[%clk 0:02:53.3]} 12. Bf4 {[%clk 0:02:24.7]}
12... d4 {[%clk 0:02:43.8]} 13. O-O {[%clk 0:02:23.4]} 13... Bd7 {[%clk
0:02:42.3]} 14. Bg3 {[%clk 0:02:11.1]} 14... O-O-O {[%clk 0:02:16.8]} 15. Qxf7
{[%clk 0:02:03.7]} 15... Rdf8 {[%clk 0:02:06.6]} 16. Qh7 {[%clk 0:02:04.3]}
16... Nd5 {[%clk 0:01:53.1]} 17. Qe4 {[%clk 0:02:01.1]} 17... Be8 {[%clk
0:01:25.9]} 18. Nxd4 {[%clk 0:01:24.6]} 18... Bg6 {[%clk 0:01:25.8]} 19. Qh4
{[%clk 0:01:25.7]} 19... Bxd3 {[%clk 0:00:50.8]} 20. cxd3 {[%clk 0:01:23.5]}
20... Nxd4 {[%clk 0:00:45.7]} 21. Qxd4 {[%clk 0:01:25.4]} 21... Kb8 {[%clk
0:00:47]} 22. Rac1 {[%clk 0:01:23]} 22... Rg7 {[%clk 0:00:36.2]} 23. Rc2 {[%clk
0:01:04]} 23... Qa5 {[%clk 0:00:37]} 24. a4 {[%clk 0:00:57.3]} 24... Rc7 {[%clk
0:00:38]} 25. Rfc1 {[%clk 0:00:58.1]} 25... Rfc8 {[%clk 0:00:38.4]} 26. h4
{[%clk 0:00:51.1]} 26... Qb6 {[%clk 0:00:18.3]} 27. Qxb6 {[%clk 0:00:42.1]}
27... axb6 {[%clk 0:00:20.2]} 28. f3 {[%clk 0:00:43]} 28... Nb4 {[%clk
0:00:20.5]} 29. h5 {[%clk 0:00:21.4]} 29... Nxc2 {[%clk 0:00:15.2]} 30. Rxc2
{[%clk 0:00:22.2]} 30... Rd7 {[%clk 0:00:15.8]} 31. Bf4 {[%clk 0:00:13.1]} 31...
Rxd3 {[%clk 0:00:16.5]} 32. h6 {[%clk 0:00:14.2]} 32... Rd4 {[%clk 0:00:14.6]}
33. g3 {[%clk 0:00:10.5]} 33... Rxa4 {[%clk 0:00:14.4]} 34. Bg5 {[%clk
0:00:07.9]} 34... Rb4 {[%clk 0:00:11.9]} 35. Bf6 {[%clk 0:00:05.5]} 35... Rb2
{[%clk 0:00:11.6]} 36. Rc1 {[%clk 0:00:06.5]} 36... c2 {[%clk 0:00:12.8]} 37.
Rxc2 {[%clk 0:00:07.3]} 37... Rcxc2 {[%clk 0:00:12.8]} 38. h7 {[%clk 0:00:09.2]}
38... Rb1# {[%clk 0:00:14]} 0-1

[Event "*** Titled Tuesday Blitz"]
[Site "Chess.com"]
[Date "2018.05.01"]
[Round "6"]
[White "Artur0208"]
[Black "NormWeinstein"]
[Result "0-1"]
[WhiteElo "2405"]
[BlackElo "2323"]
[TimeControl "180+2"]
[EndTime "14:21:29 PDT"]
[Termination "NormWeinstein won by resignation"]

1. d4 {[%clk 0:03:01.7]} 1... c5 {[%clk 0:02:58.9]} 2. d5 {[%clk 0:03:02.4]}
2... e5 {[%clk 0:03:00.4]} 3. c4 {[%clk 0:03:01.2]} 3... d6 {[%clk 0:03:01.7]}
4. Nc3 {[%clk 0:03:00.1]} 4... Be7 {[%clk 0:03:03.1]} 5. e4 {[%clk 0:02:58.4]}
5... Bg5 {[%clk 0:03:02.9]} 6. Bd3 {[%clk 0:03:00.3]} 6... Bxc1 {[%clk
0:02:55.9]} 7. Qxc1 {[%clk 0:03:02.2]} 7... Nf6 {[%clk 0:02:56]} 8. Nge2 {[%clk
0:03:02.7]} 8... O-O {[%clk 0:02:56.6]} 9. O-O {[%clk 0:03:03.7]} 9... Nbd7
{[%clk 0:02:57.2]} 10. a3 {[%clk 0:03:03.7]} 10... b6 {[%clk 0:02:57.3]} 11. b4
{[%clk 0:03:04.2]} 11... Qe7 {[%clk 0:02:50]} 12. Ng3 {[%clk 0:02:59]} 12... g6
{[%clk 0:02:50]} 13. Qd2 {[%clk 0:02:43.9]} 13... Re8 {[%clk 0:02:45.4]} 14.
Rae1 {[%clk 0:02:44.3]} 14... cxb4 {[%clk 0:02:45]} 15. axb4 {[%clk 0:02:44.9]}
15... a5 {[%clk 0:02:46.1]} 16. Nb5 {[%clk 0:02:28.8]} 16... Rf8 {[%clk
0:02:41.8]} 17. f4 {[%clk 0:01:26.2]} 17... axb4 {[%clk 0:02:27.5]} 18. Qxb4
{[%clk 0:01:08]} 18... Nc5 {[%clk 0:02:25.5]} 19. Bb1 {[%clk 0:01:08.9]} 19...
exf4 {[%clk 0:02:04.6]} 20. Rxf4 {[%clk 0:01:10.8]} 20... Nfd7 {[%clk
0:02:01.2]} 21. Ref1 {[%clk 0:01:00.5]} 21... Ne5 {[%clk 0:02:01]} 22. Qd2
{[%clk 0:00:58.1]} 22... Nxc4 {[%clk 0:01:46]} 23. Qd4 {[%clk 0:00:54.3]} 23...
Ne5 {[%clk 0:01:45.7]} 24. Rf6 {[%clk 0:00:55.4]} 24... Ba6 {[%clk 0:01:39.6]}
25. Qb4 {[%clk 0:00:32]} 25... Bxb5 {[%clk 0:01:24.5]} 26. Qxb5 {[%clk
0:00:33.9]} 26... Ned7 {[%clk 0:01:17]} 27. R6f2 {[%clk 0:00:32.4]} 27... Qe5
{[%clk 0:01:15.4]} 28. Ne2 {[%clk 0:00:30]} 28... Ra1 {[%clk 0:01:06.7]} 29. Nf4
{[%clk 0:00:28.6]} 29... Qd4 {[%clk 0:00:52.6]} 30. Kh1 {[%clk 0:00:26.7]} 30...
Ne5 {[%clk 0:00:51]} 31. Ne6 {[%clk 0:00:27.9]} 31... Nxe6 {[%clk 0:00:47.8]}
32. dxe6 {[%clk 0:00:29.7]} 32... Qc5 {[%clk 0:00:36.4]} 33. Qb3 {[%clk
0:00:26.2]} 33... Ra3 {[%clk 0:00:28.1]} 34. Qb2 {[%clk 0:00:22.6]} 34... Rc3
{[%clk 0:00:23.9]} 35. Ba2 {[%clk 0:00:18.1]} 35... Kg7 {[%clk 0:00:23]} 36.
Rxf7+ {[%clk 0:00:18]} 36... Nxf7 {[%clk 0:00:22.3]} 37. exf7 {[%clk 0:00:19.9]}
37... Qd4 {[%clk 0:00:21.6]} 38. Rf3 {[%clk 0:00:19.4]} 38... Qd1+ {[%clk
0:00:20.2]} 0-1

[Event "*** Titled Tuesday Blitz"]
[Site "Chess.com"]
[Date "2018.05.01"]
[Round "6"]
[White "JozefKneht"]
[Black "evgenysharapov"]
[Result "0-1"]
[WhiteElo "2390"]
[BlackElo "2304"]
[TimeControl "180+2"]
[EndTime "14:21:33 PDT"]
[Termination "evgenysharapov won by resignation"]

1. d4 {[%clk 0:02:54.5]} 1... d5 {[%clk 0:03:00.1]} 2. Bf4 {[%clk 0:02:55]} 2...
Nf6 {[%clk 0:02:59.9]} 3. Nf3 {[%clk 0:02:55.2]} 3... c5 {[%clk 0:03:00.3]} 4.
e3 {[%clk 0:02:55.7]} 4... Nc6 {[%clk 0:03:00.6]} 5. c3 {[%clk 0:02:55.6]} 5...
cxd4 {[%clk 0:03:01]} 6. exd4 {[%clk 0:02:55.1]} 6... g6 {[%clk 0:02:58]} 7.
Nbd2 {[%clk 0:02:53]} 7... Bg7 {[%clk 0:02:58.6]} 8. Bd3 {[%clk 0:02:50.4]} 8...
O-O {[%clk 0:02:59.1]} 9. O-O {[%clk 0:02:48.5]} 9... Nh5 {[%clk 0:02:54.1]} 10.
Be3 {[%clk 0:02:10.1]} 10... Qd6 {[%clk 0:02:53.8]} 11. Re1 {[%clk 0:02:00.7]}
11... Nf4 {[%clk 0:02:25]} 12. Bxf4 {[%clk 0:01:48.7]} 12... Qxf4 {[%clk
0:02:24.4]} 13. Qe2 {[%clk 0:01:35]} 13... Bf5 {[%clk 0:02:18.3]} 14. Bxf5
{[%clk 0:01:28.9]} 14... Qxf5 {[%clk 0:02:18.6]} 15. Nf1 {[%clk 0:01:25.8]}
15... Rfe8 {[%clk 0:02:12.6]} 16. Rad1 {[%clk 0:01:03.3]} 16... Qd7 {[%clk
0:02:02]} 17. Qd3 {[%clk 0:00:58]} 17... e6 {[%clk 0:02:01.3]} 18. h3 {[%clk
0:00:51.9]} 18... Rab8 {[%clk 0:02:01.2]} 19. N1h2 {[%clk 0:00:46.1]} 19... h5
{[%clk 0:01:59.7]} 20. Nd2 {[%clk 0:00:29.3]} 20... b5 {[%clk 0:01:41.7]} 21. a3
{[%clk 0:00:28.6]} 21... a5 {[%clk 0:01:41.8]} 22. Nb3 {[%clk 0:00:27.8]} 22...
b4 {[%clk 0:01:40.3]} 23. axb4 {[%clk 0:00:28.2]} 23... axb4 {[%clk 0:01:40.7]}
24. Nc5 {[%clk 0:00:29.7]} 24... Qd8 {[%clk 0:01:36.2]} 25. Nf3 {[%clk
0:00:29.6]} 25... bxc3 {[%clk 0:01:35.8]} 26. bxc3 {[%clk 0:00:30.9]} 26... Rb2
{[%clk 0:01:27.2]} 27. Rb1 {[%clk 0:00:30.3]} 27... Rxb1 {[%clk 0:01:09.5]} 28.
Rxb1 {[%clk 0:00:32.2]} 28... Qa5 {[%clk 0:00:58.2]} 29. Rb7 {[%clk 0:00:30.5]}
29... e5 {[%clk 0:00:36.3]} 30. Nb3 {[%clk 0:00:20.8]} 30... Qa8 {[%clk
0:00:33.6]} 31. Qb5 {[%clk 0:00:13]} 31... Rc8 {[%clk 0:00:18.4]} 32. dxe5
{[%clk 0:00:06.2]} 32... Nxe5 {[%clk 0:00:18.7]} 33. Nxe5 {[%clk 0:00:06.8]}
33... Bxe5 {[%clk 0:00:17]} 34. Qxd5 {[%clk 0:00:08.2]} 34... Rc7 {[%clk
0:00:14.4]} 35. Na5 {[%clk 0:00:06.1]} 35... Rxb7 {[%clk 0:00:14.9]} 36. Qxb7
{[%clk 0:00:02.4]} 36... Qxa5 {[%clk 0:00:14.7]} 0-1

[Event "*** Titled Tuesday Blitz"]
[Site "Chess.com"]
[Date "2018.05.01"]
[Round "6"]
[White "swayamsm"]
[Black "MartinZumsande"]
[Result "1-0"]
[WhiteElo "2570"]
[BlackElo "2514"]
[TimeControl "180+2"]
[EndTime "14:21:42 PDT"]
[Termination "swayamsm won by resignation"]

1. d4 {[%clk 0:03:01.4]} 1... d5 {[%clk 0:03:00]} 2. Nf3 {[%clk 0:02:54]} 2...
Nf6 {[%clk 0:03:00.6]} 3. Bf4 {[%clk 0:02:52.4]} 3... e6 {[%clk 0:03:01.1]} 4.
e3 {[%clk 0:02:49.1]} 4... Be7 {[%clk 0:03:02]} 5. Nbd2 {[%clk 0:02:48.5]} 5...
c5 {[%clk 0:03:02.9]} 6. c3 {[%clk 0:02:44.5]} 6... Nc6 {[%clk 0:03:04]} 7. Bd3
{[%clk 0:02:45.3]} 7... b6 {[%clk 0:03:04.9]} 8. Ne5 {[%clk 0:02:43.6]} 8...
Nxe5 {[%clk 0:03:05.4]} 9. dxe5 {[%clk 0:02:42.5]} 9... Nd7 {[%clk 0:03:06]} 10.
Bg3 {[%clk 0:02:30.1]} 10... Bb7 {[%clk 0:03:01.2]} 11. O-O {[%clk 0:02:27.7]}
11... Qc7 {[%clk 0:03:01.1]} 12. f4 {[%clk 0:02:16.5]} 12... O-O-O {[%clk
0:02:54.8]} 13. a4 {[%clk 0:02:11.9]} 13... h5 {[%clk 0:02:53.3]} 14. h4 {[%clk
0:02:02.3]} 14... f6 {[%clk 0:02:45.8]} 15. Nf3 {[%clk 0:01:55.4]} 15... fxe5
{[%clk 0:02:35.9]} 16. fxe5 {[%clk 0:01:57.3]} 16... g5 {[%clk 0:02:23.5]} 17.
hxg5 {[%clk 0:01:53.3]} 17... h4 {[%clk 0:02:19.6]} 18. Bf4 {[%clk 0:01:46.7]}
18... h3 {[%clk 0:02:18]} 19. Rf2 {[%clk 0:01:41.4]} 19... Rdg8 {[%clk
0:01:47.3]} 20. g3 {[%clk 0:01:34.7]} 20... d4 {[%clk 0:01:18.7]} 21. cxd4
{[%clk 0:01:32.6]} 21... Qc6 {[%clk 0:01:01.7]} 22. e4 {[%clk 0:01:30]} 22...
Kb8 {[%clk 0:00:46.6]} 23. d5 {[%clk 0:01:25.9]} 23... Qc8 {[%clk 0:00:43.3]}
24. d6 {[%clk 0:01:26.5]} 24... Bd8 {[%clk 0:00:41.6]} 25. Qe2 {[%clk
0:01:19.6]} 25... c4 {[%clk 0:00:38.4]} 26. Bxc4 {[%clk 0:01:11.1]} 26... b5
{[%clk 0:00:39.7]} 27. Bxb5 {[%clk 0:01:02.5]} 27... Bb6 {[%clk 0:00:40.8]} 28.
Be3 {[%clk 0:00:59.6]} 28... Nc5 {[%clk 0:00:29.7]} 29. Rc1 {[%clk 0:00:45.5]}
29... a6 {[%clk 0:00:22.1]} 30. Bd3 {[%clk 0:00:39.2]} 30... h2+ {[%clk
0:00:15.8]} 31. Kh1 {[%clk 0:00:35.2]} 31... Nxe4 {[%clk 0:00:08.6]} 32. Rxc8+
{[%clk 0:00:33.2]} 32... Rxc8 {[%clk 0:00:10.5]} 33. Bxe4 {[%clk 0:00:20.9]}
33... Bxe4 {[%clk 0:00:11.8]} 34. Bxb6 {[%clk 0:00:20.8]} 34... Rc1+ {[%clk
0:00:07.3]} 35. Rf1 {[%clk 0:00:21.8]} 35... Rxf1+ {[%clk 0:00:04.5]} 36. Qxf1
{[%clk 0:00:23.7]} 36... Kb7 {[%clk 0:00:04.6]} 37. Qe2 {[%clk 0:00:22.2]} 37...
Bd5 {[%clk 0:00:05]} 38. a5 {[%clk 0:00:21.2]} 38... Rf8 {[%clk 0:00:05.7]} 39.
Kxh2 {[%clk 0:00:20.5]} 39... Rxf3 {[%clk 0:00:06.8]} 40. Qxf3 {[%clk
0:00:21.3]} 40... Bxf3 {[%clk 0:00:07.5]} 41. g6 {[%clk 0:00:22.8]} 41... Bh5
{[%clk 0:00:08.2]} 42. g7 {[%clk 0:00:24.4]} 42... Bf7 {[%clk 0:00:09.7]} 43. d7
{[%clk 0:00:25.3]} 1-0

[Event "*** Titled Tuesday Blitz"]
[Site "Chess.com"]
[Date "2018.05.01"]
[Round "6"]
[White "PowerThinking2650"]
[Black "b_6"]
[Result "0-1"]
[WhiteElo "2280"]
[BlackElo "2294"]
[TimeControl "180+2"]
[EndTime "14:21:50 PDT"]
[Termination "b_6 won by checkmate"]

1. e4 {[%clk 0:03:01.9]} 1... c6 {[%clk 0:02:58.8]} 2. d3 {[%clk 0:03:02.1]}
2... d5 {[%clk 0:02:59]} 3. Nd2 {[%clk 0:03:02.9]} 3... e5 {[%clk 0:02:59.3]} 4.
Ngf3 {[%clk 0:03:03]} 4... Bd6 {[%clk 0:03:00.1]} 5. g3 {[%clk 0:03:03.2]} 5...
Ne7 {[%clk 0:02:46.9]} 6. Bg2 {[%clk 0:03:00.9]} 6... O-O {[%clk 0:02:47.4]} 7.
O-O {[%clk 0:03:01.6]} 7... f5 {[%clk 0:02:44.9]} 8. exd5 {[%clk 0:02:57.9]}
8... cxd5 {[%clk 0:02:45.5]} 9. d4 {[%clk 0:02:58.9]} 9... e4 {[%clk 0:02:42.4]}
10. Ne5 {[%clk 0:02:59.7]} 10... Nbc6 {[%clk 0:02:38.2]} 11. f4 {[%clk
0:02:55.8]} 11... Nxd4 {[%clk 0:02:34]} 12. Nxe4 {[%clk 0:02:53.5]} 12... Bxe5
{[%clk 0:02:25.6]} 13. fxe5 {[%clk 0:02:51.8]} 13... dxe4 {[%clk 0:02:26.3]} 14.
Bg5 {[%clk 0:02:46.6]} 14... Ndc6 {[%clk 0:02:17]} 15. Qd6 {[%clk 0:02:39.5]}
15... Qb6+ {[%clk 0:01:52.7]} 16. Kh1 {[%clk 0:02:37.4]} 16... Rd8 {[%clk
0:01:53.2]} 17. Qa3 {[%clk 0:02:28.3]} 17... Qc7 {[%clk 0:01:51.5]} 18. g4
{[%clk 0:02:20.2]} 18... g6 {[%clk 0:01:40.8]} 19. Qh3 {[%clk 0:02:09.3]} 19...
fxg4 {[%clk 0:01:23.5]} 20. Qb3+ {[%clk 0:01:16.8]} 20... Rd5 {[%clk 0:01:03.7]}
21. Rf6 {[%clk 0:01:03.7]} 21... Qxe5 {[%clk 0:00:52.9]} 22. Raf1 {[%clk
0:00:55]} 22... Be6 {[%clk 0:00:43.6]} 23. Bh6 {[%clk 0:00:50.6]} 23... Nf5
{[%clk 0:00:35.9]} 24. Bg5 {[%clk 0:00:33.4]} 24... Rb8 {[%clk 0:00:31.7]} 25.
Qa3 {[%clk 0:00:22]} 25... Rdd8 {[%clk 0:00:23.6]} 26. c3 {[%clk 0:00:18]} 26...
b5 {[%clk 0:00:20.4]} 27. Qa6 {[%clk 0:00:15.9]} 27... Rb6 {[%clk 0:00:16.4]}
28. Qa3 {[%clk 0:00:16]} 28... Qd6 {[%clk 0:00:16.6]} 29. Qxd6 {[%clk
0:00:13.5]} 29... Rxd6 {[%clk 0:00:17.7]} 30. Bxe4 {[%clk 0:00:13.3]} 30... Kg7
{[%clk 0:00:18]} 31. Kg2 {[%clk 0:00:09.3]} 31... h6 {[%clk 0:00:17.7]} 32. Rxe6
{[%clk 0:00:03.4]} 32... Rxe6 {[%clk 0:00:17.4]} 33. Bxf5 {[%clk 0:00:03.9]}
33... gxf5 {[%clk 0:00:18]} 34. Bf4 {[%clk 0:00:04.9]} 34... Ne5 {[%clk
0:00:18.2]} 35. Re1 {[%clk 0:00:05.4]} 35... Kf6 {[%clk 0:00:18.6]} 36. Kg3
{[%clk 0:00:06.7]} 36... Nd3 {[%clk 0:00:18.3]} 37. Rf1 {[%clk 0:00:06.9]} 37...
h5 {[%clk 0:00:17.7]} 38. Bd2 {[%clk 0:00:06.3]} 38... Re2 {[%clk 0:00:17.2]}
39. Bc1 {[%clk 0:00:05.7]} 39... Rbe6 {[%clk 0:00:15.8]} 40. Bh6 {[%clk
0:00:05.6]} 40... Kg6 {[%clk 0:00:15]} 41. Bc1 {[%clk 0:00:05.2]} 41... Nxc1
{[%clk 0:00:15.6]} 42. Rxc1 {[%clk 0:00:06.3]} 42... Kg5 {[%clk 0:00:16.6]} 43.
h4+ {[%clk 0:00:05.4]} 43... gxh3 {[%clk 0:00:17.3]} 44. Kxh3 {[%clk 0:00:06.7]}
44... R6e3# {[%clk 0:00:18.8]} 0-1

[Event "*** Titled Tuesday Blitz"]
[Site "Chess.com"]
[Date "2018.05.01"]
[Round "6"]
[White "PawnEatingZombie"]
[Black "toad"]
[Result "0-1"]
[WhiteElo "1990"]
[BlackElo "2199"]
[TimeControl "180+2"]
[EndTime "14:21:50 PDT"]
[Termination "toad won by resignation"]

1. d4 {[%clk 0:03:01.9]} 1... Nf6 {[%clk 0:02:59.8]} 2. c4 {[%clk 0:03:03.2]}
2... g6 {[%clk 0:03:00.9]} 3. Nc3 {[%clk 0:03:04.7]} 3... d5 {[%clk 0:03:02.4]}
4. Nf3 {[%clk 0:03:04.8]} 4... Bg7 {[%clk 0:03:03]} 5. cxd5 {[%clk 0:03:06.4]}
5... Nxd5 {[%clk 0:03:03.7]} 6. Bg5 {[%clk 0:03:08.1]} 6... c5 {[%clk
0:03:02.3]} 7. Rc1 {[%clk 0:03:08.1]} 7... O-O {[%clk 0:02:59.5]} 8. Nxd5 {[%clk
0:03:01.8]} 8... Qxd5 {[%clk 0:02:59.6]} 9. Rxc5 {[%clk 0:03:02.4]} 9... Qxa2
{[%clk 0:03:00.7]} 10. Bxe7 {[%clk 0:02:56.3]} 10... Re8 {[%clk 0:02:57.3]} 11.
Bg5 {[%clk 0:02:05.8]} 11... Na6 {[%clk 0:02:48.9]} 12. Rc1 {[%clk 0:02:01.2]}
12... Bf5 {[%clk 0:02:15.8]} 13. e3 {[%clk 0:02:01.4]} 13... Nb4 {[%clk
0:02:15.2]} 14. Bc4 {[%clk 0:01:54.2]} 14... Qxb2 {[%clk 0:02:14.3]} 15. O-O
{[%clk 0:01:54.7]} 15... Rac8 {[%clk 0:01:50.9]} 16. Qb3 {[%clk 0:01:11.9]}
16... Qxb3 {[%clk 0:01:46]} 17. Bxb3 {[%clk 0:01:13.8]} 17... Nd3 {[%clk
0:01:11.8]} 18. Rxc8 {[%clk 0:01:10.5]} 18... Rxc8 {[%clk 0:01:12.3]} 19. Be7
{[%clk 0:01:06.8]} 19... Bf8 {[%clk 0:01:06.7]} 20. Bxf8 {[%clk 0:01:06.9]}
20... Kxf8 {[%clk 0:01:07.8]} 21. Bd5 {[%clk 0:01:08.4]} 21... b6 {[%clk
0:01:03.5]} 22. Ng5 {[%clk 0:00:59.9]} 22... Nb4 {[%clk 0:00:52.6]} 23. Bxf7
{[%clk 0:00:53.9]} 23... Rc2 {[%clk 0:00:43.5]} 24. Be6 {[%clk 0:00:46.1]} 24...
Bd3 {[%clk 0:00:25.8]} 25. Ra1 {[%clk 0:00:45.3]} 25... a5 {[%clk 0:00:26]} 26.
Nxh7+ {[%clk 0:00:42.8]} 26... Ke7 {[%clk 0:00:25.7]} 27. Bb3 {[%clk 0:00:41.4]}
27... Rb2 {[%clk 0:00:24.8]} 28. Bd1 {[%clk 0:00:41.6]} 28... Nd5 {[%clk
0:00:18]} 29. h4 {[%clk 0:00:41.6]} 29... Nc3 {[%clk 0:00:17.1]} 30. Bf3 {[%clk
0:00:42.3]} 30... a4 {[%clk 0:00:17.3]} 31. g4 {[%clk 0:00:36.7]} 31... b5
{[%clk 0:00:17.8]} 32. h5 {[%clk 0:00:37.1]} 32... gxh5 {[%clk 0:00:19.1]} 33.
Ng5 {[%clk 0:00:34.8]} 33... hxg4 {[%clk 0:00:19.8]} 34. Bxg4 {[%clk 0:00:36]}
34... b4 {[%clk 0:00:20.4]} 35. Nf3 {[%clk 0:00:30.2]} 35... a3 {[%clk
0:00:20.4]} 36. Ne5 {[%clk 0:00:30.7]} 36... Rb1+ {[%clk 0:00:20.4]} 37. Rxb1
{[%clk 0:00:31.1]} 37... Bxb1 {[%clk 0:00:21.6]} 38. Nc6+ {[%clk 0:00:29.7]}
38... Kd6 {[%clk 0:00:21.4]} 39. Nxb4 {[%clk 0:00:31.6]} 39... Be4 {[%clk
0:00:20.7]} 40. f3 {[%clk 0:00:26.2]} 40... Bb7 {[%clk 0:00:20.6]} 41. Kf2
{[%clk 0:00:25.5]} 41... Nd5 {[%clk 0:00:19.7]} 42. Na2 {[%clk 0:00:24]} 42...
Ba6 {[%clk 0:00:20.4]} 43. Bf5 {[%clk 0:00:23]} 43... Bc4 {[%clk 0:00:21.1]} 44.
Bb1 {[%clk 0:00:24.1]} 44... Bxa2 {[%clk 0:00:17.4]} 45. Bxa2 {[%clk 0:00:26]}
45... Nc3 {[%clk 0:00:18.9]} 46. Bg8 {[%clk 0:00:23.8]} 46... Nd5 {[%clk
0:00:19.7]} 47. e4 {[%clk 0:00:17.7]} 47... a2 {[%clk 0:00:19.2]} 48. Bxd5
{[%clk 0:00:19.6]} 48... a1=Q {[%clk 0:00:20.1]} 0-1